bitfinex-derivatives/quotes_BNBF0:USTF0_20250116
["timestamp","ask_amount","ask_price","bid_price","bid_amount"]
[1737020178858,0.28345876,705.57,704.27,1.31905563]
[1737020179059,0.28345876,705.57,704.28,0.26073896]
[1737020180054,0.28345876,705.57,704.33,1.05831667]
[1737020180359,0.28345876,705.57,704.34,0.26073896]
[1737020181160,0.28345876,705.57,704.35,0.26073896]
[1737020181460,0.28345876,705.57,704.36,0.26075436]
[1737020181657,0.28345876,705.57,704.3,1.05831667]
[1737020181856,0.28345876,705.57,704.31,0.26076816]
[1737020183360,0.28345876,705.57,704.37,1.05831667]
[1737020183561,0.28345876,705.57,704.38,0.26076816]
[1737020184461,0.28345876,705.57,704.39,0.26076816]
[1737020184655,0.28345876,705.57,704.4,0.26076816]
[1737020184861,0.28345876,705.57,704.41,0.26076816]
[1737020185059,0.28345876,705.57,704.35,1.05831667]
[1737020185261,0.28345876,705.57,704.36,0.2607236]
[1737020185862,0.28345876,705.57,704.39,1.05831667]
[1737020186061,0.28345876,705.57,704.4,0.2607236]
[1737020187663,0.28345876,705.57,704.41,0.26069593]
[1737020187961,0.28345876,705.57,704.42,0.26069593]
[1737020188159,0.28345876,705.57,704.42,1.3190126]
[1737020188360,0.28345876,705.57,704.43,0.26069593]
[1737020189462,0.28345876,705.57,704.39,1.05831667]
[1737020189463,0.28345876,705.57,704.4,0.26069593]
[1737020189663,0.28345876,705.57,704.41,0.26069593]
[1737020189863,0.28345876,705.57,704.4,0.26069593]
[1737020190065,0.28345876,705.57,704.41,0.26069593]
[1737020190364,0.28345876,705.57,704.38,1.05831667]
[1737020191163,0.28345876,705.57,704.39,1.05831667]
[1737020191557,0.28345876,705.57,704.39,1.31901739]
[1737020191963,0.28345876,705.57,704.4,0.26070072]
[1737020192365,0.28345876,705.57,704.41,0.26070072]
[1737020192565,0.28345876,705.57,704.42,0.26070072]
[1737020192866,0.28345876,705.57,704.43,0.26070072]
[1737020193165,0.28345876,705.57,704.44,0.26070072]
[1737020193366,0.28345876,705.57,704.45,0.26070072]
[1737020193666,0.28345876,705.57,704.46,0.26070072]
[1737020193863,0.28345876,705.57,704.47,0.26070072]
[1737020194063,0.28345876,705.57,704.48,0.26070072]
[1737020194258,0.28345876,705.57,704.34,1.05831667]
[1737020194259,0.28345876,705.57,704.49,0.26072351]
[1737020194467,0.28345876,705.57,704.34,1.05831667]
[1737020194667,0.28345876,705.57,704.35,0.26073421]
[1737020195266,0.28345876,705.57,704.33,1.05831667]
[1737020195465,0.28345876,705.57,704.34,0.26073784]
[1737020196561,0.28345876,705.57,704.31,1.05831667]
[1737020196766,0.28345876,705.57,704.32,0.26074025]
[1737020198164,0.28345876,705.57,704.3,1.05831667]
[1737020198568,0.28345876,705.57,704.33,0.26075029]
[1737020198765,0.28345876,705.57,704.31,0.26075029]
[1737020200966,0.28345876,705.57,704.32,0.26071779]
[1737020201166,0.28345876,705.57,704.31,0.26071779]
[1737020201473,0.28345876,705.57,704.38,1.05831667]
[1737020201672,0.28345876,705.57,704.39,0.26071779]
[1737020202570,0.28345876,705.57,704.4,1.05831667]
[1737020202768,0.28345876,705.57,704.4,1.31902677]
[1737020202973,0.28345876,705.57,704.41,0.2607101]
[1737020203573,0.28345876,705.57,704.43,1.05831667]
[1737020203774,0.28345876,705.57,704.44,0.2607101]
[1737020204470,0.28345876,705.57,704.49,1.05831667]
[1737020204673,0.28345876,705.57,704.5,0.2607101]
[1737020205673,0.28345876,705.57,704.5,1.31902677]
[1737020205874,0.28345876,705.57,704.51,0.2607101]
[1737020206270,0.28345876,705.57,704.5,1.05831667]
[1737020206678,0.28345876,705.57,704.52,1.05831667]
[1737020207777,0.28345876,705.57,704.09,0.28405459]
[1737020207778,0.28345876,705.57,704.48,1.05831667]
[1737020208676,0.28345876,705.57,704.43,1.05831667]
[1737020209471,0.28345876,705.57,704.1,0.71900647]
[1737020209472,0.28345876,705.57,704.42,1.05831667]
[1737020210578,0.28345876,705.57,704.1,0.71900647]
[1737020210579,0.28345876,705.57,704.43,1.05831667]
[1737020212079,0.28345876,705.57,704.44,0.26065874]
[1737020212480,0.28345876,705.57,704.45,1.05831667]
[1737020212773,0.28345876,705.57,704.46,0.26065731]
[1737020213679,0.28345876,705.57,704.46,1.31897398]
[1737020213980,0.28345876,705.57,704.47,0.2606451]
[1737020214179,1.06039907,706.17,704.47,0.2606451]
[1737020214379,0.28322594,706.15,704.47,0.2606451]
[1737020214579,0.28322594,706.15,704.51,1.05831667]
[1737020214879,0.28322594,706.15,704.52,0.2606451]
[1737020216681,1.06039907,706.14,704.54,1.05831667]
[1737020217181,1.06039907,706.14,704.55,0.26063236]
[1737020217481,0.28323396,706.13,704.56,0.2606421]
[1737020217781,0.28323396,706.13,704.57,0.2606421]
[1737020218082,0.28323396,706.13,704.58,0.2606421]
[1737020218276,0.28323396,706.13,704.59,0.2606421]
[1737020218576,1.34363303,706.13,704.6,0.2606421]
[1737020218776,1.34363303,706.13,704.61,0.2606421]
[1737020218977,1.34363303,706.13,704.54,1.05831667]
[1737020218978,1.34363303,706.13,704.62,0.2606421]
[1737020219175,1.34363303,706.13,704.54,1.05831667]
[1737020219379,1.34363303,706.13,704.55,0.26063492]
[1737020219576,0.28323396,706.13,704.56,1.05831667]
[1737020219878,0.28323396,706.13,704.57,0.26063492]
[1737020220882,0.28323396,706.13,704.55,0.26063492]
[1737020221077,0.28323396,706.13,704.58,0.26062105]
[1737020221276,0.28323396,706.13,704.59,0.26062105]
[1737020221482,0.28323396,706.13,704.6,0.26062105]
[1737020221675,0.28323396,706.13,704.61,0.26062105]
[1737020221880,0.28323396,706.13,704.62,0.26062105]
[1737020222082,0.28323396,706.13,704.63,0.26062105]
[1737020222284,0.28323396,706.13,704.64,0.26061244]
[1737020222485,0.28323396,706.13,704.65,0.26061244]
[1737020222679,0.28323396,706.13,704.66,0.26061244]
[1737020222885,0.28323396,706.13,704.67,0.26061244]
[1737020223082,0.28323396,706.13,704.61,1.05831667]
[1737020223287,0.28323396,706.13,704.62,0.2606229]
[1737020224288,0.28323396,706.13,704.63,0.2606229]
[1737020224587,0.28323396,706.13,704.64,0.2606229]
[1737020224789,0.28323396,706.13,704.65,0.2606229]
[1737020225086,0.28323396,706.13,704.58,1.05831667]
[1737020225087,0.28323396,706.13,704.66,0.2606239]
[1737020225288,0.28323396,706.13,704.67,0.2606239]
[1737020225487,0.28323396,706.13,704.68,0.2606239]
[1737020225688,0.28323396,706.13,704.69,0.2606239]
[1737020225888,0.28323396,706.13,704.7,0.2606239]
[1737020226087,0.28323396,706.13,704.71,0.2606239]
[1737020226283,0.28323396,706.13,704.72,0.2606239]
[1737020226486,0.28323396,706.13,704.73,0.2606239]
[1737020226687,0.28323396,706.13,704.74,0.2606239]
[1737020226889,0.28323396,706.13,704.75,0.2606239]
[1737020227082,0.28323396,706.13,704.59,1.05831667]
[1737020227083,0.28323396,706.13,704.76,0.2606239]
[1737020227281,0.28323396,706.13,704.59,1.05831667]
[1737020227491,0.28323396,706.13,704.6,0.26060268]
[1737020227687,0.28323396,706.13,704.59,1.05831667]
[1737020227888,0.28323396,706.13,704.39,1.05831667]
[1737020227889,0.28323396,706.13,704.6,0.26059825]
[1737020228184,0.28323396,706.13,704.61,0.26059825]
[1737020228490,0.28323396,706.13,704.59,1.31891492]
[1737020228689,0.28323396,706.13,704.6,0.26059825]
[1737020229185,0.28323396,706.13,704.1,2.81204534]
[1737020229391,0.28323396,706.13,704.11,5.36343159]
[1737020229591,0.28323396,706.13,704.12,2.81204534]
[1737020229790,0.28323396,706.13,704.13,2.81204534]
[1737020230091,0.28323396,706.13,704.64,1.05432134]
[1737020230590,0.28323396,706.13,704.65,0.26059825]
[1737020232093,0.28323396,706.13,704.66,1.05432134]
[1737020232293,0.28323396,706.13,704.67,0.26059825]
[1737020233593,0.28323396,706.13,704.66,0.26059825]
[1737020233792,0.28323396,706.13,704.67,0.26059825]
[1737020233991,0.28323396,706.13,704.68,0.26059825]
[1737020234192,0.28323396,706.13,704.14,1.26518561]
[1737020234193,0.28323396,706.13,704.71,1.05432134]
[1737020234487,0.28323396,706.13,704.72,0.26059825]
[1737020235291,0.28323396,706.13,704.8,1.05432134]
[1737020235487,0.28323396,706.13,704.81,0.26059825]
[1737020236593,0.28323396,706.13,704.89,1.05432134]
[1737020236795,0.28323396,706.13,704.9,0.26047653]
[1737020237791,0.28323396,706.13,704.91,0.26047653]
[1737020237992,0.28323396,706.13,704.92,0.26047653]
[1737020238193,0.28323396,706.13,704.93,0.26047653]
[1737020238393,0.28323396,706.13,704.94,0.26047653]
[1737020238594,0.28323396,706.13,704.95,0.26047653]
[1737020238789,0.28323396,706.13,704.81,1.05432134]
[1737020239095,0.28323396,706.13,704.82,0.26047803]
[1737020239698,0.28323396,706.13,704.8,0.26047803]
[1737020240796,0.28323396,706.13,704.81,0.26047803]
[1737020240999,0.28323396,706.13,704.79,0.26047803]
[1737020241195,0.28323396,706.13,704.8,0.26047803]
[1737020241396,0.28323396,706.13,704.81,0.26047803]
[1737020241695,0.28323396,706.13,704.82,0.26047717]
[1737020241898,0.28323396,706.13,704.72,0.26047717]
[1737020242096,0.28323396,706.13,704.74,0.2837926]
[1737020242297,0.28323396,706.13,704.75,0.26047717]
[1737020242601,0.28323396,706.13,704.77,0.28378052]
[1737020242799,0.28323396,706.13,704.78,0.26047717]
[1737020244198,0.28323396,706.13,704.79,0.26048241]
[1737020244403,0.28323396,706.13,704.8,0.26048241]
[1737020244603,0.28323396,706.13,704.81,0.26048241]
[1737020244802,0.28323396,706.13,704.82,0.5442428]
[1737020245005,0.28323396,706.13,704.83,0.26048241]
[1737020245298,0.28323396,706.13,704.84,0.28375234]
[1737020245502,0.28323396,706.13,704.85,0.26048241]
[1737020247103,0.28323396,706.13,704.86,0.26051981]
[1737020247403,0.28323396,706.13,704.87,0.26051981]
[1737020247601,0.28323396,706.13,704.88,0.26051981]
[1737020247797,0.28323396,706.13,704.89,0.26051981]
[1737020248003,0.28323396,706.13,704.9,0.26051981]
[1737020248202,0.28323396,706.13,704.91,0.26051981]
[1737020248398,0.28323396,706.13,704.85,0.26051981]
[1737020248702,0.28323396,706.13,704.86,0.26051981]
[1737020248904,0.28323396,706.13,704.87,0.26051981]
[1737020249101,0.28323396,706.13,704.85,0.26051981]
[1737020249303,0.28323396,706.13,704.86,0.26051981]
[1737020249501,0.28323396,706.13,704.87,0.26051981]
[1737020249698,0.28323396,706.13,704.84,0.28375234]
[1737020249904,0.28323396,706.13,704.85,0.26050671]
[1737020250403,0.28323396,706.13,704.86,0.28374428]
[1737020250603,0.28323396,706.13,704.87,0.26050671]
[1737020250803,0.28323396,706.13,704.88,0.28373623]
[1737020251004,0.28323396,706.13,704.89,0.26050671]
[1737020252503,0.28323396,706.13,704.88,0.28373623]
[1737020252504,0.28323396,706.13,704.9,0.2605064]
[1737020252703,0.28323396,706.13,704.89,0.2605064]
[1737020253005,0.28323396,706.13,704.9,0.2605064]
[1737020253209,0.28323396,706.13,704.91,0.26050584]
[1737020253505,0.28323396,706.13,704.92,0.26050584]
[1737020253698,0.28323396,706.13,704.93,0.26050584]
[1737020253899,0.28323396,706.13,704.94,0.26050584]
[1737020254098,0.28323396,706.13,704.95,0.26050584]
[1737020254304,0.28323396,706.13,704.96,0.26050584]
[1737020254500,0.28323396,706.13,704.97,0.26050584]
[1737020254802,0.28323396,706.13,704.98,0.26050584]
[1737020255005,0.28323396,706.13,704.99,0.26050584]
[1737020255304,0.28323396,706.13,704.88,0.28373623]
[1737020255505,0.28323396,706.13,704.89,0.26050519]
[1737020255902,0.28323396,706.13,704.9,0.28372818]
[1737020256106,0.28323396,706.13,704.91,0.26050519]
[1737020257601,0.28323396,706.13,704.91,0.54422935]
[1737020257806,0.28323396,706.13,704.92,0.26050519]
[1737020258002,0.28323396,706.13,704.91,0.28372416]
[1737020258207,0.28323396,706.13,704.92,0.26050567]
[1737020260709,0.28323396,706.13,704.91,0.28372416]
[1737020261006,0.28323396,706.13,704.92,0.26049348]
[1737020261208,0.28323396,706.13,704.95,1.05432134]
[1737020261607,0.28323396,706.13,704.96,0.2604971]
[1737020262807,0.28323396,706.13,704.96,1.31481844]
[1737020263006,0.28323396,706.13,704.97,0.2604971]
[1737020263605,0.28323396,706.13,704.98,0.26048785]
[1737020263809,0.28323396,706.13,704.97,0.26048785]
[1737020264006,0.28323396,706.13,704.99,1.05432134]
[1737020264207,0.28323396,706.13,705.0,0.26048785]
[1737020265004,0.28323396,706.13,705.03,1.05432134]
[1737020265204,0.28323396,706.13,705.04,0.26048785]
[1737020265409,0.28323396,706.13,705.03,1.05432134]
[1737020265904,0.28323396,706.13,704.91,0.28372416]
[1737020266805,0.28323396,706.13,704.91,1.3380455]
[1737020267811,0.28323396,706.13,704.93,1.05432134]
[1737020268907,0.28323396,706.13,704.94,1.05432134]
[1737020270318,0.28323396,706.13,705.02,1.05432134]
[1737020271508,0.28323396,706.13,704.97,1.05432134]
[1737020272417,0.28323396,706.13,704.95,1.05432134]
[1737020273323,0.28323396,706.13,705.03,1.05432134]
[1737020274417,0.28323396,706.13,705.08,1.05432134]
[1737020275127,0.28323396,706.13,705.05,1.05432134]
[1737020276325,0.28323396,706.13,705.12,1.05432134]
[1737020280228,0.28323396,706.13,705.13,0.26044829]
[1737020280428,1.05793523,706.49,705.13,0.26044829]
[1737020280729,1.05793523,706.47,705.22,1.05432134]
[1737020281723,1.05793523,706.47,705.23,1.05432134]
[1737020283033,1.34102487,706.49,705.22,1.05432134]
[1737020284032,0.28309364,706.48,705.22,1.05432134]
[1737020284233,1.05793523,706.38,705.13,1.05432134]
[1737020284534,1.34106895,706.38,705.13,1.05432134]
[1737020285534,1.05793523,706.37,705.13,1.05432134]
[1737020286737,1.05793523,706.36,705.11,1.05432134]
[1737020287536,1.05793523,706.37,705.12,1.05432134]
[1737020288535,1.34106895,706.38,705.12,1.05432134]
[1737020289442,1.34106895,706.38,705.13,1.05432134]
[1737020289443,0.28313372,706.38,705.13,1.05432134]
[1737020290637,1.34106895,706.38,705.12,1.05432134]
[1737020291637,1.34106895,706.38,705.13,1.05432134]
[1737020292641,1.34106895,706.38,705.09,1.05432134]
[1737020292642,0.28313372,706.38,705.09,1.05432134]
[1737020293648,0.28313372,706.38,704.91,0.28372416]
[1737020299453,1.47972815,706.37,704.91,0.28372416]
[1737020300144,0.28314174,706.36,704.91,0.28372416]
[1737020302451,1.05793523,706.35,704.91,0.28372416]
[1737020303547,0.28315376,706.33,704.91,0.28372416]
[1737020303953,1.05793523,706.22,704.91,0.28372416]
[1737020304748,0.28320188,706.21,704.91,0.28372416]
[1737020307851,0.28320188,706.21,704.61,1.05432134]
[1737020308051,0.28320188,706.21,704.62,0.26063457]
[1737020308255,0.28320188,706.21,704.63,0.26063457]
[1737020308454,0.28320188,706.21,704.64,0.26063457]
[1737020308653,0.28320188,706.21,704.65,0.26063457]
[1737020308851,0.28320188,706.21,704.66,0.26063457]
[1737020309157,1.05793523,706.13,704.67,0.26063457]
[1737020309355,1.05793523,706.13,704.55,1.05432134]
[1737020309356,1.05793523,706.13,704.68,0.26063457]
[1737020309555,1.05793523,706.13,704.69,0.26063457]
[1737020309756,1.05793523,706.13,704.7,0.26063457]
[1737020310052,0.28320188,706.21,704.71,0.26061318]
[1737020310053,1.05793523,706.2,704.71,0.26061318]
[1737020310259,1.05793523,706.2,704.57,1.05432134]
[1737020310260,1.05793523,706.2,704.58,0.26061318]
[1737020310555,0.2832099,706.19,704.59,0.5444662]
[1737020310756,0.2832099,706.19,704.6,0.26061318]
[1737020312758,0.2832099,706.19,704.61,0.2606107]
[1737020312953,0.2832099,706.19,704.6,0.2606107]
[1737020313156,0.2832099,706.19,704.61,0.2606107]
[1737020313354,0.2832099,706.19,704.6,0.2606107]
[1737020313555,0.2832099,706.19,704.61,0.2606107]
[1737020313752,0.2832099,706.19,704.62,0.2606107]
[1737020313955,0.2832099,706.19,704.63,0.2606107]
[1737020314155,0.2832099,706.19,704.59,0.28385302]
[1737020314156,0.2832099,706.19,704.64,0.2606107]
[1737020314353,0.2832099,706.19,704.65,0.2606107]
[1737020314658,0.2832099,706.19,704.66,0.2606107]
[1737020314854,0.2832099,706.19,704.6,0.2606107]
[1737020315058,0.2832099,706.19,704.61,0.2606107]
[1737020315358,0.2832099,706.19,704.62,0.2606107]
[1737020315553,0.2832099,706.19,704.63,0.2606107]
[1737020315757,0.2832099,706.19,704.6,0.2606107]
[1737020316056,0.2832099,706.19,704.59,0.28385302]
[1737020316253,0.2832099,706.19,704.6,0.26061339]
[1737020317960,0.2832099,706.19,704.6,0.54446238]
[1737020318159,0.2832099,706.19,704.6,0.28384899]
[1737020318359,0.2832099,706.19,704.61,0.2606138]
[1737020320063,1.48012675,706.18,704.61,0.2606138]
[1737020320459,0.28321792,706.17,704.61,0.2606138]
[1737020320954,0.28321792,706.17,704.62,0.26061074]
[1737020321158,0.28321792,706.17,704.63,0.26061074]
[1737020321353,0.28321792,706.17,704.64,0.26061074]
[1737020321558,0.28321792,706.17,704.65,0.26061074]
[1737020321755,0.28321792,706.17,704.66,0.26061074]
[1737020321955,0.28321792,706.17,704.67,0.26061074]
[1737020322155,0.28321792,706.17,704.68,0.26061074]
[1737020322460,0.28321792,706.17,704.69,0.26061074]
[1737020322759,0.28321792,706.17,704.7,0.26061074]
[1737020323061,0.28321792,706.17,704.71,0.26061074]
[1737020323262,1.05793523,706.16,704.63,0.26061074]
[1737020323462,0.28322594,706.15,704.64,0.26061074]
[1737020323663,0.28322594,706.15,704.65,0.26061044]
[1737020323864,0.28322594,706.15,704.66,0.26061044]
[1737020324163,0.28322594,706.15,704.67,0.26061044]
[1737020324363,0.28322594,706.15,704.68,0.26060971]
[1737020324558,0.28322594,706.15,704.65,0.26060971]
[1737020325157,0.28322594,706.15,704.66,1.05432134]
[1737020325361,0.28322594,706.15,704.67,0.26060971]
[1737020326059,1.05793523,706.14,704.68,1.05432134]
[1737020326364,1.05793523,706.14,704.69,0.26060971]
[1737020326764,1.05793523,706.14,704.7,0.28380871]
[1737020326963,1.05793523,706.14,704.71,0.26060971]
[1737020327165,0.28322594,706.15,704.76,1.05432134]
[1737020327460,0.28322594,706.15,704.77,0.26060971]
[1737020328266,0.28322594,706.15,704.78,1.05432134]
[1737020328466,0.28322594,706.15,704.79,0.26060971]
[1737020329268,0.28322594,706.15,704.78,1.05432134]
[1737020329469,0.28322594,706.15,704.8,1.31481159]
[1737020329664,0.28322594,706.15,704.8,1.05432134]
[1737020329871,0.28322594,706.15,704.81,0.26049025]
[1737020330370,0.28322594,706.15,704.9,1.05432134]
[1737020330565,0.28322594,706.15,704.91,0.26049025]
[1737020331665,0.28322594,706.15,704.92,0.26049025]
[1737020331863,0.28322594,706.15,704.88,1.05432134]
[1737020332065,0.28322594,706.15,704.89,0.26050301]
[1737020332669,0.28322594,706.15,704.9,0.2605026]
[1737020332970,0.28322594,706.15,704.91,0.2605026]
[1737020333170,0.28322594,706.15,704.85,0.2605026]
[1737020333369,0.28322594,706.15,704.86,0.2605026]
[1737020333570,0.28322594,706.15,704.87,0.2605026]
[1737020333775,0.28322594,706.15,704.88,0.2605026]
[1737020333969,0.28322594,706.15,704.89,0.2605026]
[1737020334171,0.28322594,706.15,704.9,0.2605026]
[1737020334472,0.28322594,706.15,704.91,0.2605026]
[1737020334772,0.28322594,706.15,704.82,1.05432134]
[1737020334965,0.28322594,706.15,704.83,0.54426045]
[1737020335169,0.28322594,706.15,704.84,0.54425643]
[1737020335366,0.28322594,706.15,704.85,0.26050409]
[1737020335969,0.28322594,706.15,704.84,0.28375234]
[1737020343879,0.28322594,706.15,704.85,0.26051961]
[1737020345085,0.28322594,706.15,704.86,0.26053267]
[1737020345285,0.28322594,706.15,704.85,0.26053267]
[1737020347186,0.28322594,706.15,704.84,0.28375234]
[1737020351490,1.47994316,706.14,704.84,0.28375234]
[1737020353189,1.47994316,706.14,704.85,0.26056869]
[1737020353390,1.47994316,706.14,704.84,0.28375234]
[1737020353590,0.28322594,706.15,704.84,0.28375234]
[1737020357399,0.28322594,706.15,704.85,0.26057501]
[1737020358997,0.28322594,706.15,704.86,0.26056993]
[1737020359197,0.28322594,706.15,704.84,0.28375234]
[1737020359398,0.28322594,706.15,704.85,0.2605706]
[1737020361699,0.28322594,706.15,704.86,0.26054747]
[1737020361898,0.28322594,706.15,704.87,0.26054747]
[1737020362099,0.28322594,706.15,704.84,0.28375234]
[1737020362100,0.28322594,706.15,704.88,0.26054747]
[1737020362294,0.28322594,706.15,704.89,0.26054747]
[1737020362495,0.28322594,706.15,704.9,0.26054747]
[1737020362694,0.28322594,706.15,704.91,0.26054747]
[1737020362900,0.28322594,706.15,704.92,0.26054747]
[1737020363098,0.28322594,706.15,704.93,0.26054747]
[1737020363300,0.28322594,706.15,704.94,0.26054747]
[1737020363500,0.28322594,706.15,704.95,0.26054747]
[1737020363702,0.28322594,706.15,704.96,0.26054747]
[1737020364000,0.28322594,706.15,704.97,0.26054747]
[1737020364202,0.28322594,706.15,704.98,0.26054747]
[1737020364396,0.28322594,706.15,704.99,0.26053123]
[1737020364598,0.28322594,706.15,704.9,1.05432134]
[1737020364800,0.28322594,706.15,704.91,0.26053056]
[1737020365002,0.28322594,706.15,704.9,1.05432134]
[1737020365300,0.28322594,706.15,704.91,0.2605281]
[1737020365500,0.28322594,706.15,704.89,1.05432134]
[1737020366601,0.28322594,706.15,704.84,0.28375234]
[1737020375202,0.28322594,706.15,704.85,0.26055886]
[1737020375397,0.28322594,706.15,704.84,0.28375234]
[1737020378005,0.28322594,706.15,704.85,0.26054376]
[1737020378399,0.28322594,706.15,704.84,1.33996483]
[1737020379205,0.28322594,706.15,704.85,0.26055021]
[1737020379407,0.28322594,706.15,704.88,1.05621249]
[1737020379899,0.28322594,706.15,704.89,0.26054856]
[1737020381007,0.28322594,706.15,704.93,1.05621249]
[1737020381705,0.28322594,706.15,704.94,1.05621249]
[1737020382703,0.28322594,706.15,704.95,1.05621249]
[1737020383807,0.28322594,706.15,704.94,1.05621249]
[1737020384602,0.28322594,706.15,704.84,0.28375234]
[1737020384603,0.28322594,706.15,704.91,1.05621249]
[1737020386210,0.28322594,706.15,704.84,0.28375234]
[1737020386211,1.06065326,706.14,704.9,1.05621249]
[1737020386910,1.06065326,706.08,704.94,1.05621249]
[1737020387907,0.28322594,706.15,704.84,0.28375234]
[1737020387908,1.06065326,706.1,704.86,1.05621249]
[1737020388305,0.28325001,706.09,704.86,1.05621249]
[1737020389110,1.06065326,706.08,704.84,0.28375234]
[1737020389309,1.34390728,706.08,704.84,0.28375234]
[1737020389906,0.28325402,706.08,704.84,0.28375234]
[1737020392813,1.06065326,706.07,704.84,0.28375234]
[1737020393613,0.28326204,706.06,704.84,0.28375234]
[1737020394614,0.28326204,706.06,704.85,0.26058962]
[1737020394810,0.28326204,706.06,704.84,0.28375234]
[1737020395015,0.28326204,706.06,704.85,0.26058811]
[1737020396218,0.28326204,706.06,704.84,0.28375234]
[1737020396219,0.28326204,706.06,704.84,1.33996483]
[1737020397320,0.28326204,706.06,704.84,0.28375234]
[1737020411835,0.28326204,706.06,704.85,0.26059434]
[1737020412237,1.06065326,706.01,704.87,1.05621249]
[1737020413135,1.06065326,706.0,704.87,1.05621249]
[1737020413536,1.06065326,706.0,704.88,0.26058739]
[1737020413831,1.06065326,706.0,704.87,1.05621249]
[1737020414031,1.06065326,706.0,704.89,1.05621249]
[1737020414934,1.06065326,706.03,704.86,1.05621249]
[1737020415840,1.06065326,706.04,704.87,1.05621249]
[1737020416038,1.34392332,706.04,704.87,1.05621249]
[1737020416738,1.06065326,706.02,704.87,1.05621249]
[1737020417834,1.06065326,706.01,704.89,1.05621249]
[1737020419440,1.06065326,706.0,704.91,1.05621249]
[1737020420640,1.06065326,705.97,704.92,1.05621249]
[1737020421635,1.06065326,705.97,704.93,1.05621249]
[1737020422739,1.06065326,705.98,704.98,1.05621249]
[1737020423544,1.06065326,705.98,704.96,1.05621249]
[1737020424342,1.06065326,705.95,704.97,1.05621249]
[1737020425244,1.06065326,705.93,704.98,1.05621249]
[1737020426142,1.06065326,706.02,704.98,1.05621249]
[1737020426143,1.06065326,705.94,704.98,1.05621249]
[1737020427644,1.06065326,705.94,705.0,1.05621249]
[1737020428747,1.06065326,706.03,704.84,0.28375234]
[1737020428748,1.06065326,705.92,704.99,1.05621249]
[1737020429240,1.06065326,706.01,704.99,1.05621249]
[1737020429445,0.28327006,706.04,704.84,0.28375234]
[1737020443851,0.28327006,706.04,704.9,1.05621249]
[1737020444950,1.06065326,706.03,704.92,1.05621249]
[1737020445149,1.34392734,706.03,704.92,1.05621249]
[1737020445950,1.34392734,706.03,704.95,1.05621249]
[1737020445951,1.06065326,705.98,704.95,1.05621249]
[1737020446751,0.28327408,706.03,704.95,1.05621249]
[1737020446752,1.06065326,705.97,704.95,1.05621249]
[1737020447756,1.06065326,705.97,704.96,1.05621249]
[1737020449049,1.06065326,705.91,705.0,1.05621249]
[1737020450056,1.06065326,705.99,704.84,0.28375234]
[1737020450057,1.06065326,705.98,705.05,1.05621249]
[1737020451157,0.28327408,706.03,705.05,1.05621249]
[1737020451158,1.06065326,705.99,705.05,1.05621249]
[1737020452358,0.28327408,706.03,704.84,0.28375234]
[1737020452359,0.28327408,706.03,704.94,1.05621249]
[1737020453259,0.28327408,706.03,704.93,1.05621249]
[1737020454358,0.28327408,706.03,704.9,1.05621249]
[1737020456357,0.28327408,706.03,704.91,1.05621249]
[1737020457360,0.28327408,706.03,704.9,1.05621249]
[1737020458560,0.28327408,706.03,704.89,1.05621249]
[1737020460563,0.28327408,706.03,704.9,1.05621249]
[1737020461361,0.28327408,706.03,704.89,1.05621249]
[1737020461556,0.28327408,706.03,704.9,0.26056669]
[1737020461758,0.28327408,706.03,704.91,0.26056922]
[1737020461963,0.28327408,706.03,704.9,0.26056922]
[1737020462158,0.28327408,706.03,704.92,0.26056922]
[1737020462369,0.28327408,706.03,704.89,1.05621249]
[1737020462657,0.28327408,706.03,704.99,1.05621249]
[1737020463765,0.28327408,706.03,704.98,1.05621249]
[1737020464964,0.28327408,706.03,704.93,1.05621249]
[1737020466066,0.28327408,706.03,704.95,1.05621249]
[1737020466967,0.28327408,706.03,704.84,0.28375234]
[1737020466968,0.28327408,706.03,704.92,1.05621249]
[1737020468962,0.28327408,706.03,704.93,0.26056086]
[1737020469960,0.28327408,706.03,704.94,0.26056731]
[1737020470167,0.28327408,706.03,704.92,1.05621249]
[1737020470466,0.28327408,706.03,704.93,0.26056645]
[1737020470869,1.34392734,706.03,705.0,1.05621249]
[1737020472068,0.28327408,706.03,704.91,1.05621249]
[1737020472770,0.28327408,706.03,704.86,1.05621249]
[1737020474170,0.28327408,706.03,704.84,0.28375234]
[1737020482885,1.06065326,705.94,704.74,1.05621249]
[1737020483080,0.2833142,705.93,704.74,1.05621249]
[1737020483782,0.2833142,705.93,704.54,1.05621249]
[1737020483783,1.06065326,705.89,704.68,1.05621249]
[1737020483983,0.28333427,705.88,704.68,1.05621249]
[1737020484689,1.06065326,705.84,704.61,1.05621249]
[1737020485685,0.28333427,705.88,704.53,1.05621249]
[1737020485884,0.28333427,705.88,704.54,0.2606723]
[1737020486388,0.28333427,705.88,704.55,0.26067556]
[1737020486588,0.28333427,705.88,704.54,0.26067556]
[1737020486783,0.28333427,705.88,704.55,0.26067556]
[1737020486982,0.28333427,705.88,704.52,0.26067556]
[1737020487289,0.28333427,705.88,704.53,0.26064292]
[1737020487488,0.28333427,705.88,704.54,0.26064292]
[1737020487788,0.28333427,705.88,704.61,1.05621249]
[1737020487983,0.28333427,705.88,704.62,0.26064292]
[1737020489785,0.28333427,705.88,704.6,1.05621249]
[1737020490590,0.28333427,705.88,704.46,1.05621249]
[1737020490790,0.28333427,705.88,704.47,0.26065422]